Workbook

Sheet Sheet
A1: 2018-09-23T21:19:01 | B1: =A1 -> 43366.88821 | F1: =NOW() -> 43370.68299 | G1: =NOW() -> 2018-09-27T16:23:29.980 | K1: 2018-08-26T10:15:30
G2: =NOW() -> 2018-09-27T16:23:29.980 | K2: 0 | L2: x | M2: y
G3: =NOW() -> 2018-09-27T16:23:29.980 | K3: hours | L3: =0.5*SIN(RADIANS(30*HOUR(K1)+MINUTE(K1)/2+SECOND(K1)/120)) -> -0.3953447869 | M3: =0.5*COS(RADIANS(30*HOUR(K1)+MINUTE(K1)/2+SECOND(K1)/120)) -> 0.30610864
G4: =NOW() -> 43370.68299 | K4: minutes | L4: =0.75*SIN(RADIANS(6*MINUTE(K1)+SECOND(K1)/10)) -> 0.7489721511 | M4: =0.75*COS(RADIANS(6*MINUTE(K1)+SECOND(K1)/10)) -> -0.03925196718
F5: =NOW() -> 2018-09-27T16:23:29.980 | K5: secondes | L5: =1*SIN(RADIANS(6*SECOND(K1))) -> 1.225148455e-16 | M5: =1*COS(RADIANS(6*SECOND(K1))) -> -1
B7: الوقت الان | C7: =B1 -> 43366.88821
B9: الوقت في الساعة | C9: 00:00:00
B11: وقت التسجيل | C11: =C7-C9 -> 43366.88821

Sheet برنامج السباق
A1: نادي الزعفرانية | H1: Al Zaafarania Club
A2: لسباق الحمام الزاجل | E2: ='معلومات السباق'!B2 -> سباق الزبيدية | H2: To race pigeons
A3: عدد الهواة : | B3: ='معلومات السباق'!B4:C4 -> 20
A4: عدد الحمام : | B4: ='معلومات السباق'!B5:C5 -> 2000 | G4: وقت وتاريخ السباق | H4: ='معلومات السباق'!B8 -> 06:10:00 | I4: 2018-08-15
A5: الرياح : | B5: ='معلومات السباق'!B6:C6 -> شمالي غربي 12 كم/س | G5: احداثيـــة السبـــــاق | H5: ='معلومات السباق'!B3 -> 32.47338 | I5: ='معلومات السباق'!C3 -> 45.10011
A7: ت | B7: أسم المتسابق | C7: رقم الحجل | D7: وقت الوصول | E7: زمن الرحلة | F7: خط العرض | G7: خط الطول | H7: مسافة الرحلة كم | I7: معدل السرعة
A8: 1 | B8: المتسابق 20 | C8: ******* | D8: 06:15:50 | E8: =IF(B8="","",D8-$H$4) -> 00:05:50 | F8: =IF(B8="","",VLOOKUP(B8,احداثيات!A$2:B$100,2,0)) -> 33.263403 | G8: =IF(B8="","",VLOOKUP(B8,احداثيات!C$2:D$100,2,0)) -> 44.493413 | H8: =IF(B8="","",ACOS(SIN(RADIANS($H$5))*SIN(RADIANS(F8))+COS(RADIANS($H$5))*COS(RADIANS(F8))*COS(RADIANS($I$5-G8)))*6371) -> 104.5347429 | I8: =IF(B8="","",H8/(HOUR(E8)+(MINUTE(E8)/60)+(SECOND(E8)/3600))*1000/60) -> 17920.24164
A9: 2 | B9: المتسابق 1 | C9: ******* | D9: 06:33:11 | E9: 00:23:11 | F9: =IF(B9="","",VLOOKUP(B9,احداثيات!A$2:B$100,2,0)) -> 33.270333 | G9: =IF(B9="","",VLOOKUP(B9,احداثيات!C$2:D$100,2,0)) -> 44.461213 | H9: 106.8318467 | I9: =IF(B9="","",H9/(HOUR(E9)+(MINUTE(E9)/60)+(SECOND(E9)/3600))*1000/60) -> 4608.131419
A10: 3 | B10: المتسابق 7 | C10: ******* | D10: 07:05:05 | E10: 00:55:05 | F10: =IF(B10="","",VLOOKUP(B10,احداثيات!A$2:B$100,2,0)) -> 33.260003 | G10: =IF(B10="","",VLOOKUP(B10,احداثيات!C$2:D$100,2,0)) -> 44.475013 | H10: 105.162034 | I10: =IF(B10="",0,H10/(HOUR(E10)+(MINUTE(E10)/60)+(SECOND(E10)/3600))*1000/60) -> 1909.144339
A11: 4 | B11: المتسابق 1 | C11: ******* | D11: 07:12:12 | E11: 01:02:12 | F11: =IF(B11="","",VLOOKUP(B11,احداثيات!A$2:B$100,2,0)) -> 33.270333 | G11: =IF(B11="","",VLOOKUP(B11,احداثيات!C$2:D$100,2,0)) -> 44.461213 | H11: 106.8318467 | I11: =IF(B11="","",H11/(HOUR(E11)+(MINUTE(E11)/60)+(SECOND(E11)/3600))*1000/60) -> 1717.553806
A12: 5 | B12: المتسابق 1 | C12: ******* | D12: 07:20:26 | E12: 01:10:26 | F12: =IF(B12="","",VLOOKUP(B12,احداثيات!A$2:B$100,2,0)) -> 33.270333 | G12: =IF(B12="","",VLOOKUP(B12,احداثيات!C$2:D$100,2,0)) -> 44.461213 | H12: 106.8318467 | I12: 1516.779651
A13: 6 | B13: المتسابق 5 | C13: ******* | D13: 07:20:26 | E13: 01:10:26 | F13: =IF(B13="","",VLOOKUP(B13,احداثيات!A$2:B$100,2,0)) -> 33.263403 | G13: =IF(B13="","",VLOOKUP(B13,احداثيات!C$2:D$100,2,0)) -> 44.470413 | H13: 105.7144591 | I13: 1500.915179
A14: 7 | B14: المتسابق 3 | C14: ******* | D14: 07:33:20 | E14: 01:23:20 | F14: =IF(B14="","",VLOOKUP(B14,احداثيات!A$2:B$100,2,0)) -> 33.266803 | G14: =IF(B14="","",VLOOKUP(B14,احداثيات!C$2:D$100,2,0)) -> 44.465813 | H14: 106.2670758 | I14: 1275.20491
A15: 8 | B15: المتسابق 5 | C15: ******* | D15: 07:33:05 | E15: 01:23:05 | F15: =IF(B15="","",VLOOKUP(B15,احداثيات!A$2:B$100,2,0)) -> 33.263403 | G15: =IF(B15="","",VLOOKUP(B15,احداثيات!C$2:D$100,2,0)) -> 44.470413 | H15: 105.7144591 | I15: 1272.390681
A16: 9 | B16: المتسابق 4 | C16: ******* | D16: 07:33:23 | E16: 01:23:23 | F16: =IF(B16="","",VLOOKUP(B16,احداثيات!A$2:B$100,2,0)) -> 33.265103 | G16: =IF(B16="","",VLOOKUP(B16,احداثيات!C$2:D$100,2,0)) -> 44.468113 | H16: 105.9907437 | I16: 1271.126249
A17: 10 | B17: المتسابق 7 | C17: ******* | D17: 07:33:32 | E17: 01:23:32 | F17: =IF(B17="","",VLOOKUP(B17,احداثيات!A$2:B$100,2,0)) -> 33.260003 | G17: =IF(B17="","",VLOOKUP(B17,احداثيات!C$2:D$100,2,0)) -> 44.475013 | H17: 105.162034 | I17: 1258.922993
A18: 11 | B18: المتسابق 8 | C18: ******* | D18: 07:33:35 | E18: 01:23:35 | F18: =IF(B18="","",VLOOKUP(B18,احداثيات!A$2:B$100,2,0)) -> 33.258303 | G18: =IF(B18="","",VLOOKUP(B18,احداثيات!C$2:D$100,2,0)) -> 44.477313 | H18: 104.8858943 | I18: 1254.866133
A19: 12 | B19: المتسابق 19 | C19: ******* | D19: 07:33:38 | E19: 01:23:38 | F19: =IF(B19="","",VLOOKUP(B19,احداثيات!A$2:B$100,2,0)) -> 33.265103 | G19: =IF(B19="","",VLOOKUP(B19,احداثيات!C$2:D$100,2,0)) -> 44.491113 | H19: 104.809758 | I19: 1253.205556
A20: 13 | B20: المتسابق 9 | C20: ******* | D20: 07:33:41 | E20: 01:23:41 | F20: =IF(B20="","",VLOOKUP(B20,احداثيات!A$2:B$100,2,0)) -> 33.256603 | G20: =IF(B20="","",VLOOKUP(B20,احداثيات!C$2:D$100,2,0)) -> 44.479613 | H20: 104.6098037 | I20: 1250.067362
A21: 14 | B21: المتسابق 20 | C21: ******* | D21: 07:33:44 | E21: 01:23:44 | F21: =IF(B21="","",VLOOKUP(B21,احداثيات!A$2:B$100,2,0)) -> 33.263403 | G21: =IF(B21="","",VLOOKUP(B21,احداثيات!C$2:D$100,2,0)) -> 44.493413 | H21: 104.5347429 | I21: 1248.424477
A22: 15 | B22: المتسابق 23 | C22: ******* | D22: 07:33:47 | E22: 01:23:47 | F22: =IF(B22="","",VLOOKUP(B22,احداثيات!A$2:B$100,2,0)) -> 33.258303 | G22: =IF(B22="","",VLOOKUP(B22,احداثيات!C$2:D$100,2,0)) -> 44.484213 | H22: 104.5298893 | I22: 1247.621516
A23: 16 | B23: المتسابق 10 | C23: ******* | D23: 07:33:50 | E23: 01:23:50 | F23: =IF(B23="","",VLOOKUP(B23,احداثيات!A$2:B$100,2,0)) -> 33.254903 | G23: =IF(B23="","",VLOOKUP(B23,احداثيات!C$2:D$100,2,0)) -> 44.481913 | H23: 104.3337627 | I23: 1244.537925
A24: 17 | B24: المتسابق 21 | C24: ******* | D24: 07:33:53 | E24: 01:23:53 | F24: =IF(B24="","",VLOOKUP(B24,احداثيات!A$2:B$100,2,0)) -> 33.261703 | G24: =IF(B24="","",VLOOKUP(B24,احداثيات!C$2:D$100,2,0)) -> 44.495713 | H24: 104.2597831 | I24: 1242.914164
A25: 18 | B25: المتسابق 11 | C25: ******* | D25: 07:33:56 | E25: 01:23:56 | F25: =IF(B25="","",VLOOKUP(B25,احداثيات!A$2:B$100,2,0)) -> 33.253203 | G25: =IF(B25="","",VLOOKUP(B25,احداثيات!C$2:D$100,2,0)) -> 44.484213 | H25: 104.0577716 | I25: 1239.766937
A26: 19 | B26: المتسابق 12 | C26: ******* | D26: 07:33:59 | E26: 01:23:59 | F26: =IF(B26="","",VLOOKUP(B26,احداثيات!A$2:B$100,2,0)) -> 33.251503 | G26: =IF(B26="","",VLOOKUP(B26,احداثيات!C$2:D$100,2,0)) -> 44.486513 | H26: 103.7818309 | I26: 1235.743174
A27: 20 | B27: المتسابق 13 | C27: ******* | D27: 07:34:02 | E27: 01:24:02 | F27: =IF(B27="","",VLOOKUP(B27,احداثيات!A$2:B$100,2,0)) -> 33.249803 | G27: =IF(B27="","",VLOOKUP(B27,احداثيات!C$2:D$100,2,0)) -> 44.488813 | H27: 103.505941 | I27: 1231.724804
A28: 21 | B28: المتسابق 18 | C28: ******* | D28: 07:34:05 | E28: 01:24:05 | F28: =IF(B28="","",VLOOKUP(B28,احداثيات!A$2:B$100,2,0)) -> 33.244703 | G28: =IF(B28="","",VLOOKUP(B28,احداثيات!C$2:D$100,2,0)) -> 44.484213 | H28: 103.2730324 | I28: 1228.222387
A29: 22 | B29: المتسابق 15 | C29: ******* | D29: 07:34:11 | E29: 01:24:11 | F29: =IF(B29="","",VLOOKUP(B29,احداثيات!A$2:B$100,2,0)) -> 33.222222 | G29: =IF(B29="","",VLOOKUP(B29,احداثيات!C$2:D$100,2,0)) -> 44.444444 | H29: 103.367764 | I29: 1227.888704
A30: 23 | B30: المتسابق 14 | C30: ******* | D30: 07:34:08 | E30: 01:24:08 | F30: =IF(B30="","",VLOOKUP(B30,احداثيات!A$2:B$100,2,0)) -> 33.248103 | G30: =IF(B30="","",VLOOKUP(B30,احداثيات!C$2:D$100,2,0)) -> 44.491113 | H30: 103.2301024 | I30: 1226.982199
A31: 24 | B31: المتسابق 16 | C31: ******* | D31: 07:34:14 | E31: 01:24:14 | F31: =IF(B31="","",VLOOKUP(B31,احداثيات!A$2:B$100,2,0)) -> 33.244703 | G31: =IF(B31="","",VLOOKUP(B31,احداثيات!C$2:D$100,2,0)) -> 44.495713 | H31: 102.6785806 | I31: 1218.978004
A32: 25 | B32: المتسابق 22 | C32: ******* | D32: 07:34:17 | E32: 01:24:17 | F32: =IF(B32="","",VLOOKUP(B32,احداثيات!A$2:B$100,2,0)) -> 33.260003 | G32: =IF(B32="","",VLOOKUP(B32,احداثيات!C$2:D$100,2,0)) -> 44.555555 | H32: 101.1797137 | I32: 1200.471193
A33: 26 | B33: المتسابق 1 | C33: ******* | D33: 07:50:50 | E33: 01:40:50 | F33: =IF(B33="","",VLOOKUP(B33,احداثيات!A$2:B$100,2,0)) -> 33.270333 | G33: =IF(B33="","",VLOOKUP(B33,احداثيات!C$2:D$100,2,0)) -> 44.461213 | H33: 106.8318467 | I33: 1059.489389
A34: 27 | B34: المتسابق 15 | C34: ******* | D34: 07:50:50 | E34: 01:40:50 | F34: =IF(B34="","",VLOOKUP(B34,احداثيات!A$2:B$100,2,0)) -> 33.222222 | G34: =IF(B34="","",VLOOKUP(B34,احداثيات!C$2:D$100,2,0)) -> 44.444444 | H34: 103.367764 | I34: 1025.13485
A35: 28 | F35: =IF(B35="","",VLOOKUP(B35,احداثيات!A$2:B$100,2,0)) ->  | G35: =IF(B35="","",VLOOKUP(B35,احداثيات!C$2:D$100,2,0)) ->  | I35: =IF(B35="",0,H35/(HOUR(E35)+(MINUTE(E35)/60)+(SECOND(E35)/3600))*1000/60) -> 0
A36: 29 | F36: =IF(B36="","",VLOOKUP(B36,احداثيات!A$2:B$100,2,0)) ->  | G36: =IF(B36="","",VLOOKUP(B36,احداثيات!C$2:D$100,2,0)) ->  | I36: 0
A37: 30 | F37: =IF(B37="","",VLOOKUP(B37,احداثيات!A$2:B$100,2,0)) ->  | G37: =IF(B37="","",VLOOKUP(B37,احداثيات!C$2:D$100,2,0)) ->  | I37: 0
A38: 31 | F38: =IF(B38="","",VLOOKUP(B38,احداثيات!A$2:B$100,2,0)) ->  | G38: =IF(B38="","",VLOOKUP(B38,احداثيات!C$2:D$100,2,0)) ->  | I38: 0
A39: 32 | F39: =IF(B39="","",VLOOKUP(B39,احداثيات!A$2:B$100,2,0)) ->  | G39: =IF(B39="","",VLOOKUP(B39,احداثيات!C$2:D$100,2,0)) ->  | I39: 0
A40: 33 | F40: =IF(B40="","",VLOOKUP(B40,احداثيات!A$2:B$100,2,0)) ->  | G40: =IF(B40="","",VLOOKUP(B40,احداثيات!C$2:D$100,2,0)) ->  | I40: 0
A41: 34 | F41: =IF(B41="","",VLOOKUP(B41,احداثيات!A$2:B$100,2,0)) ->  | G41: =IF(B41="","",VLOOKUP(B41,احداثيات!C$2:D$100,2,0)) ->  | I41: 0
A42: 35 | F42: =IF(B42="","",VLOOKUP(B42,احداثيات!A$2:B$100,2,0)) ->  | G42: =IF(B42="","",VLOOKUP(B42,احداثيات!C$2:D$100,2,0)) ->  | I42: 0
A43: 36 | F43: =IF(B43="","",VLOOKUP(B43,احداثيات!A$2:B$100,2,0)) ->  | G43: =IF(B43="","",VLOOKUP(B43,احداثيات!C$2:D$100,2,0)) ->  | I43: 0
A44: 37 | F44: =IF(B44="","",VLOOKUP(B44,احداثيات!A$2:B$100,2,0)) ->  | G44: =IF(B44="","",VLOOKUP(B44,احداثيات!C$2:D$100,2,0)) ->  | I44: 0
A45: 38 | F45: =IF(B45="","",VLOOKUP(B45,احداثيات!A$2:B$100,2,0)) ->  | G45: =IF(B45="","",VLOOKUP(B45,احداثيات!C$2:D$100,2,0)) ->  | I45: 0
A46: 39 | F46: =IF(B46="","",VLOOKUP(B46,احداثيات!A$2:B$100,2,0)) ->  | G46: =IF(B46="","",VLOOKUP(B46,احداثيات!C$2:D$100,2,0)) ->  | I46: 0
A47: 40 | F47: =IF(B47="","",VLOOKUP(B47,احداثيات!A$2:B$100,2,0)) ->  | G47: =IF(B47="","",VLOOKUP(B47,احداثيات!C$2:D$100,2,0)) ->  | I47: 0
A48: 41 | F48: =IF(B48="","",VLOOKUP(B48,احداثيات!A$2:B$100,2,0)) ->  | G48: =IF(B48="","",VLOOKUP(B48,احداثيات!C$2:D$100,2,0)) ->  | I48: 0
A49: 42 | F49: =IF(B49="","",VLOOKUP(B49,احداثيات!A$2:B$100,2,0)) ->  | G49: =IF(B49="","",VLOOKUP(B49,احداثيات!C$2:D$100,2,0)) ->  | I49: 0
A50: 43 | F50: =IF(B50="","",VLOOKUP(B50,احداثيات!A$2:B$100,2,0)) ->  | G50: =IF(B50="","",VLOOKUP(B50,احداثيات!C$2:D$100,2,0)) ->  | I50: 0
A51: 44 | F51: =IF(B51="","",VLOOKUP(B51,احداثيات!A$2:B$100,2,0)) ->  | G51: =IF(B51="","",VLOOKUP(B51,احداثيات!C$2:D$100,2,0)) ->  | I51: 0

Sheet احداثيات
A1: الاسم | B1: خط الطول | D1: خط العرض
A2: المتسابق 1 | B2: 33.270333 | C2: المتسابق 1 | D2: 44.461213
A3: المتسابق 2 | B3: 33.268503 | C3: المتسابق 2 | D3: 44.463513
A4: المتسابق 3 | B4: 33.266803 | C4: المتسابق 3 | D4: 44.465813
A5: المتسابق 4 | B5: 33.265103 | C5: المتسابق 4 | D5: 44.468113
A6: المتسابق 5 | B6: 33.263403 | C6: المتسابق 5 | D6: 44.470413
A7: المتسابق 6 | B7: 33.261703 | C7: المتسابق 6 | D7: 44.472713
A8: المتسابق 7 | B8: 33.260003 | C8: المتسابق 7 | D8: 44.475013
A9: المتسابق 8 | B9: 33.258303 | C9: المتسابق 8 | D9: 44.477313
A10: المتسابق 9 | B10: 33.256603 | C10: المتسابق 9 | D10: 44.479613
A11: المتسابق 10 | B11: 33.254903 | C11: المتسابق 10 | D11: 44.481913
A12: المتسابق 11 | B12: 33.253203 | C12: المتسابق 11 | D12: 44.484213
A13: المتسابق 12 | B13: 33.251503 | C13: المتسابق 12 | D13: 44.486513
A14: المتسابق 13 | B14: 33.249803 | C14: المتسابق 13 | D14: 44.488813
A15: المتسابق 14 | B15: 33.248103 | C15: المتسابق 14 | D15: 44.491113
A16: المتسابق 15 | B16: 33.222222 | C16: المتسابق 15 | D16: 44.444444
A17: المتسابق 16 | B17: 33.244703 | C17: المتسابق 16 | D17: 44.495713
A18: المتسابق 17 | B18: 33.333333 | C18: المتسابق 17 | D18: 44.555555
A19: المتسابق 18 | B19: 33.244703 | C19: المتسابق 18 | D19: 44.484213
A20: المتسابق 19 | B20: 33.265103 | C20: المتسابق 19 | D20: 44.491113
A21: المتسابق 20 | B21: 33.263403 | C21: المتسابق 20 | D21: 44.493413
A22: المتسابق 21 | B22: 33.261703 | C22: المتسابق 21 | D22: 44.495713
A23: المتسابق 22 | B23: 33.260003 | C23: المتسابق 22 | D23: 44.555555
A24: المتسابق 23 | B24: 33.258303 | C24: المتسابق 23 | D24: 44.484213
A25: المتسابق 24 | B25: 33.256603 | C25: المتسابق 24 | D25: 44.412871
A26: المتسابق 25 | B26: 33.254903 | C26: المتسابق 25 | D26: 44.341529
A27: المتسابق 26 | B27: 33.253203 | C27: المتسابق 26 | D27: 44.270187

Sheet معلومات السباق
A2: نقطة السبـــاق : | B2: سباق الزبيدية
A3: احداثية السباق : | B3: 32.47338 | C3: 45.10011
A4: عـــــــدد الهواة : | B4: 20
A5: عــــــدد الحمام : | B5: 2000
A6: الريـــــــــــــاح : | B6: شمالي غربي 12 كم/س
A7: تاريخ السبـاق : | B7: 2018-09-25
A8: وقت السبـــاق : | B8: 06:10:00

Sheet ورقة1
A1: 1
A2: 2
A3: 3
A4: 4
A5: 5
A6: 6
A7: 7
A8: 8
A9: 9
A10: 10
A11: 11
A12: 12
A13: 13
A14: 14
A15: 15
A16: 16
A17: 17
A18: 18
A19: 19
A20: 20
A21: 21
A22: 22
A23: 23
A24: 24
A25: 25
A26: 26
A27: 27
A28: 28
A29: 29
A30: 30
A31: 31
A32: 32
A33: 33
A34: 34
A35: 35
A36: 36
A37: 37
A38: 38
A39: 39
A40: 40
A41: 41
A42: 42
A43: 43
A44: 44
A45: 45
A46: 46
A47: 47
A48: 48
A49: 49
A50: 50
A51: 51
A52: 52
A53: 53
A54: 54
A55: 55
A56: 56
A57: 57
A58: 58
A59: 59
A60: 60
A61: 61
A62: 62
A63: 63
A64: 64
A65: 65
A66: 66
A67: 67
A68: 68
A69: 69
A70: 70
A71: 71
A72: 72
A73: 73
A74: 74
A75: 75
A76: 76
A77: 77
A78: 78
A79: 79
A80: 80
A81: 81
A82: 82
A83: 83
A84: 84
A85: 85
A86: 86
A87: 87
A88: 88
A89: 89
A90: 90
A91: 91
A92: 92
A93: 93
A94: 94
A95: 95
A96: 96
A97: 97
A98: 98
A99: 99
A100: 100
A101: 101
A102: 102
A103: 103
A104: 104
A105: 105
A106: 106
A107: 107
A108: 108
A109: 109
A110: 110
A111: 111
A112: 112
A113: 113
A114: 114
A115: 115
A116: 116
A117: 117
A118: 118
A119: 119
A120: 120
A121: 121
A122: 122
A123: 123
A124: 124
A125: 125
A126: 126
A127: 127
A128: 128
A129: 129
A130: 130
A131: 131
A132: 132
A133: 133
A134: 134
A135: 135
A136: 136
A137: 137
A138: 138
A139: 139
A140: 140
A141: 141
A142: 142
A143: 143
A144: 144
A145: 145
A146: 146
A147: 147
A148: 148
A149: 149
A150: 150
A151: 151
A152: 152
A153: 153
A154: 154
A155: 155
A156: 156
A157: 157
A158: 158
A159: 159
A160: 160
A161: 161
A162: 162
A163: 163
A164: 164
A165: 165
A166: 166
A167: 167
A168: 168
A169: 169
A170: 170
A171: 171
A172: 172
A173: 173
A174: 174
A175: 175
A176: 176
A177: 177
A178: 178
A179: 179
A180: 180
A181: 181
A182: 182
A183: 183
A184: 184
